fUSD/lending_fUSD_20260605
["ID","MTS","AMOUNT","RATE_DAILY","PERIOD"]
[424210071,1780667440000,-500.0,9.973e-05,2]
[424210062,1780667440000,-500.0,9.973e-05,2]
[424210057,1780667440000,-380.39186677,9.973e-05,2]
[424210055,1780667440000,-500.0,9.973e-05,2]
[424210054,1780667440000,-490.48212941,9.973e-05,2]
[424210084,1780667441000,-222.27990009,9.973e-05,2]
[424210083,1780667441000,-277.72009991,9.973e-05,2]
[424210089,1780667441000,-500.0,9.973e-05,2]
[424210086,1780667441000,-500.0,9.973e-05,2]
[424210092,1780667441000,-500.0,9.973e-05,2]
[424210093,1780667441000,-500.0,9.973e-05,2]
[424210094,1780667441000,-500.0,9.973e-05,2]
[424210091,1780667441000,-500.0,9.973e-05,2]
[424210095,1780667442000,-500.0,9.973e-05,2]
[424210096,1780667442000,-72.04966717,9.973e-05,2]
[424210100,1780667442000,-500.0,9.973e-05,2]
[424210099,1780667442000,-500.0,9.973e-05,2]
[424210101,1780667442000,-196.94324679,9.973e-05,2]
[424210098,1780667442000,-427.95033283,9.973e-05,2]
[424210116,1780667452000,-437.8728599,9.973e-05,2]
[424210115,1780667452000,-303.05675321,9.973e-05,2]
[424210114,1780667452000,-1200.0,9.972e-05,2]
[424210113,1780667452000,-309.07038689,9.874e-05,2]
[424210112,1780667452000,-250.0,9.726e-05,2]
[424210135,1780667454000,-500.0,9.973e-05,2]
[424210138,1780667454000,-500.0,9.973e-05,2]
[424210136,1780667454000,-500.0,9.973e-05,2]
[424210133,1780667454000,-500.0,9.973e-05,2]
[424210140,1780667454000,-500.0,9.973e-05,2]
[424210131,1780667454000,-500.0,9.973e-05,2]
[424210132,1780667454000,-639.87768761,9.973e-05,2]
[424210130,1780667454000,-500.0,9.973e-05,2]
[424210129,1780667454000,-500.0,9.973e-05,2]
[424210128,1780667454000,-62.1271401,9.973e-05,2]
[424210134,1780667454000,-500.0,9.973e-05,2]
[424210142,1780667454000,-500.0,9.973e-05,2]
[424210139,1780667454000,-563.98776876,9.973e-05,2]
[424210146,1780667454000,-500.0,9.973e-05,2]
[424210145,1780667454000,-500.0,9.973e-05,2]
[424210157,1780667454000,-2507.99198305,0.00010199,2]
[424210155,1780667454000,-467.97093326,0.00010193,2]
[424210156,1780667454000,-4985.90497524,0.00010199,2]
[424210153,1780667454000,-320.0,0.00010187,2]
[424210154,1780667454000,-500.0,0.00010193,2]
[424210137,1780667454000,-500.0,9.973e-05,2]
[424210151,1780667454000,-500.0,0.000101,2]
[424210148,1780667454000,-300.0,9.973e-05,2]
[424210149,1780667454000,-48136.94530983,9.975e-05,2]
[424210152,1780667454000,-166.90124495,0.00010149,2]
[424210147,1780667454000,-500.0,9.973e-05,2]
[424210150,1780667454000,-166.66,0.00010031,2]
[424210159,1780667455000,-79452.82770237,0.000102,2]
[424210158,1780667455000,-16629.28145878,0.00010199,2]
[424210161,1780667455000,-166.66,0.00010362,2]
[424210160,1780667455000,-215.77576141,0.00010324,2]
[424210162,1780667455000,-250.0,0.00010427,2]
[424210163,1780667455000,-320.0,0.00010442,2]
[424210164,1780667455000,-166.66,0.00010693,2]
[424210166,1780667455000,-3467.23,0.00010702,2]
[424210167,1780667455000,-1988.1,0.00010796,2]
[424210169,1780667455000,-150.0,0.00010959,2]
[424210171,1780667455000,-1680.0,0.00010969,2]
[424210165,1780667455000,-320.0,0.00010697,2]
[424210174,1780667455000,-500.0,0.00010987,2]
[424210172,1780667455000,-255.0,0.0001097,2]
[424210195,1780667455000,-3200.0,0.000116,4]
[424210191,1780667455000,-166.66,0.00011355,2]
[424210189,1780667455000,-150.0,0.00011233,2]
[424210193,1780667455000,-200.0,0.00011381,2]
[424210181,1780667455000,-23167.32030096,0.00011099,2]
[424210168,1780667455000,-320.0,0.00010952,2]
[424210184,1780667455000,-320.0,0.00011206,2]
[424210180,1780667455000,-23167.32030096,0.00011099,2]
[424210177,1780667455000,-152.0,0.00011064,2]
[424210175,1780667455000,-166.66,0.00011024,2]
[424210183,1780667455000,-23167.32030096,0.00011167,2]
[424210214,1780667456000,-204.51579981,0.00011699,2]
[424210213,1780667456000,-8747.11275224,0.00011699,2]
[424210212,1780667456000,-166.66,0.00011686,2]
[424210211,1780667456000,-923.80869317,0.00011674,2]
[424210209,1780667456000,-1000.0,0.00011669,2]
[424210207,1780667456000,-451.59553573,0.0001165,2]
[424210203,1780667456000,-29297.59249296,0.00011612,2]
[424210201,1780667456000,-3959.04010704,0.00011612,2]
[424210199,1780667456000,-4000.0,0.00011612,2]
[424210217,1780667456000,-4800.0,0.000117,4]
[424210206,1780667456000,-450.11668839,0.00011642,7]
[424210197,1780667456000,-2000.0,0.00011612,2]
[424210215,1780667456000,-3940.64165402,0.00011699,2]
[424210219,1780667456000,-2910.0058,0.00011709,2]
[424210216,1780667456000,-2183.14973715,0.00011699,2]
[424210229,1780667456000,-17975.48542247,0.00011809,2]
[424210228,1780667456000,-1023.63214268,0.00011808,3]
[424210227,1780667456000,-423.35354369,0.00011808,2]
[424210224,1780667456000,-1000.0,0.00011711,2]
[424210226,1780667456000,-6400.0,0.000118,4]
[424210221,1780667456000,-925.56031615,0.00011711,3]
[424210225,1780667456000,-150.0,0.00011799,2]
[424210222,1780667456000,-98.07182656,0.00011711,3]
[424210223,1780667456000,-1000.0,0.00011711,2]
[424210220,1780667456000,-1023.63214269,0.00011711,3]
[424210218,1780667456000,-23167.32030096,0.000117,2]
[424210230,1780667457000,-3319.99999998,0.00011809,2]
[424210237,1780667472000,-551.51991098,0.00011799,2]
[424210239,1780667473000,-874.41906212,0.00011809,2]
[424210240,1780667473000,-3937.04179234,0.00011809,2]
[424210238,1780667473000,-367.33708902,0.00011809,2]
[424210242,1780667473000,-923.757,0.00011809,2]
[424210243,1780667473000,-51494.80753291,0.00011809,2]
[424210244,1780667473000,-892.66760487,0.00011809,2]
[424210241,1780667473000,-499.94,0.00011809,2]
[424210298,1780667493000,-699.0965401,9.173e-05,2]
[424210299,1780667494000,-131.89431309,9.173e-05,2]
[424210300,1780667494000,-419.62559789,9.175e-05,2]
[424210301,1780667494000,-286.71368499,9.175e-05,2]
[424210302,1780667494000,-1023.63214271,0.00011808,3]
[424210303,1780667494000,-141766.91902877,0.00011809,2]
[424210304,1780667498000,-500.0,9.174e-05,2]
[424210305,1780667498000,-31.04,9.174e-05,2]
[424210307,1780667500000,-150.0,9.434e-05,2]
[424210306,1780667500000,-218.96,9.174e-05,2]
[424210313,1780667501000,-270.08314433,0.00010369,2]
[424210314,1780667501000,-188.38600516,0.00011609,2]
[424210312,1780667501000,-500.0,0.0001009,2]
[424210308,1780667501000,-648.78652486,9.596e-05,2]
[424210309,1780667501000,-225.32455258,0.0001009,2]
[424210315,1780667501000,-700.0,0.000118,4]
[424210311,1780667501000,-250.0,0.0001009,2]
[424210310,1780667501000,-774.67544742,0.0001009,2]
[424210318,1780667501000,-164.0,0.0001189,2]
[424210320,1780667501000,-1226.7551687,0.000119,4]
[424210319,1780667501000,-8000.0,0.000119,4]
[424210317,1780667501000,-179.5065138,0.00011849,2]
[424210330,1780667501000,-152.0,0.00012118,7]
[424210325,1780667501000,-839.21722511,0.00012055,2]
[424210327,1780667501000,-3468.59744141,0.00012055,2]
[424210326,1780667501000,227.1152959,9.669e-05,7]
[424210321,1780667501000,-173.2448313,0.000119,4]
[424210316,1780667501000,-150.0,0.00011808,2]
[424210328,1780667501000,-4439.29808567,0.00012055,2]
[424210324,1780667501000,-150.0,0.00011988,2]
[424210323,1780667501000,-421.82,0.00011988,2]
[424210329,1780667501000,-2351.0,0.00012066,2]
[424210322,1780667501000,-450.11668839,0.00011974,7]
[424210342,1780667502000,-450.1166884,0.00012418,7]
[424210337,1780667502000,-451.59553572,0.00012192,2]
[424210333,1780667502000,-152.0,0.00012121,7]
[424210336,1780667502000,-2183.1497371,0.00012156,2]
[424210332,1780667502000,-152.0,0.00012118,7]
[424210335,1780667502000,-152.0,0.00012125,7]
[424210334,1780667502000,-152.0,0.00012121,7]
[424210338,1780667502000,-23167.32030096,0.00012233,2]
[424210339,1780667502000,-284.32,0.0001224,2]
[424210349,1780667502000,-2183.1497371,0.00013071,2]
[424210331,1780667502000,-152.0,0.00012118,7]
[424210344,1780667502000,-451.59553572,0.00012733,2]
[424210341,1780667502000,-8747.11275219,0.0001241,2]
[424210343,1780667502000,-2183.1497371,0.00012614,2]
[424210356,1780667502000,-1331.661758,0.00013424,2]
[424210353,1780667502000,-451.59553572,0.00013275,2]
[424210354,1780667502000,-3940.64165402,0.000133,2]
[424210347,1780667502000,-255.0,0.00012883,2]
[424210346,1780667502000,-23167.32030096,0.00012767,2]
[424210348,1780667502000,-1062.91281172,0.00012898,2]
[424210351,1780667502000,-1852.42,0.00013155,2]
[424210340,1780667502000,-2428.49,0.00012329,2]
[424210350,1780667502000,-8747.11275219,0.00013122,2]
[424210345,1780667502000,-8747.11275219,0.00012766,2]
[424210355,1780667502000,-23167.32030096,0.000133,2]
[424210352,1780667502000,-3292.0,0.00013273,2]
[424210364,1780667503000,-500.0,0.00013425,2]
[424210365,1780667503000,-500.0,0.00013425,2]
[424210366,1780667503000,-500.0,0.00013425,2]
[424210363,1780667503000,-277.44313622,0.00013425,2]
[424210360,1780667503000,-500.0,0.00013425,2]
[424210359,1780667503000,-202.334456,0.00013425,2]
[424210358,1780667503000,-320.388304,0.00013425,2]
[424210361,1780667503000,-150.0,0.00013425,2]
[424210362,1780667503000,-286.98646443,0.00013425,2]
[424210368,1780667503000,-275.92945887,0.00013425,2]
[424210357,1780667503000,-892.510268,0.00013424,2]
[424210367,1780667503000,-500.0,0.00013425,2]
[424210370,1780667503000,-150.0,0.00013425,2]
[424210369,1780667503000,-150.0,0.00013425,2]
[424210379,1780667503000,-150.0,0.00013425,2]
[424210382,1780667503000,-150.0,0.00013488,2]
[424210377,1780667503000,-284.0,0.00013425,2]
[424210371,1780667503000,-150.0,0.00013425,2]
[424210376,1780667503000,-150.0,0.00013425,2]
[424210372,1780667503000,-167.83494967,0.00013425,2]
[424210373,1780667503000,-150.0,0.00013425,2]
[424210378,1780667503000,-150.0,0.00013425,2]
[424210375,1780667503000,-150.0,0.00013425,2]
[424210374,1780667503000,-150.0,0.00013425,2]
[424210381,1780667503000,-8747.11275219,0.00013477,2]
[424210380,1780667503000,-200.0,0.00013425,2]
[424210388,1780667504000,-150.0,0.00013564,2]
[424210387,1780667504000,-2183.1497371,0.00013528,2]
[424210385,1780667504000,-180.66,0.00013491,2]
[424210383,1780667504000,-150.0,0.00013488,2]
[424210394,1780667504000,-500.0,0.00013698,2]
[424210389,1780667504000,-150.0,0.00013589,2]
[424210392,1780667504000,-500.0,0.00013698,2]
[424210386,1780667504000,-150.0,0.00013513,2]
[424210391,1780667504000,-500.0,0.00013698,2]
[424210393,1780667504000,-500.0,0.00013698,2]
[424210390,1780667504000,-150.0,0.00013613,2]
[424210384,1780667504000,-150.0,0.00013488,2]
[424210404,1780667504000,-500.0,0.00013698,2]
[424210407,1780667504000,-500.0,0.00013698,2]
[424210395,1780667504000,-500.0,0.00013698,2]
[424210400,1780667504000,-500.0,0.00013698,2]
[424210396,1780667504000,-500.0,0.00013698,2]
[424210406,1780667504000,-500.0,0.00013698,2]
[424210405,1780667504000,-500.0,0.00013698,2]
[424210399,1780667504000,-500.0,0.00013698,2]
[424210403,1780667504000,-500.0,0.00013698,2]
[424210402,1780667504000,-500.0,0.00013698,2]
[424210401,1780667504000,-500.0,0.00013698,2]
[424210398,1780667504000,-500.0,0.00013698,2]
[424210397,1780667504000,-500.0,0.00013698,2]
[424210416,1780667505000,-500.0,0.00013698,2]
[424210412,1780667505000,-500.0,0.00013698,2]
[424210423,1780667505000,-500.0,0.00013698,2]
[424210408,1780667505000,-500.0,0.00013698,2]
[424210422,1780667505000,-500.0,0.00013698,2]
[424210415,1780667505000,-309.2506608,0.00013698,2]
[424210418,1780667505000,-500.0,0.00013698,2]
[424210411,1780667505000,-516.98237672,0.00013698,2]
[424210409,1780667505000,-500.0,0.00013698,2]
[424210419,1780667505000,-500.0,0.00013698,2]
[424210420,1780667505000,-500.0,0.00013698,2]
[424210413,1780667505000,-500.0,0.00013698,2]
[424210410,1780667505000,-500.0,0.00013698,2]
[424210433,1780667505000,-500.0,0.00013698,2]
[424210417,1780667505000,-500.0,0.00013698,2]
[424210429,1780667505000,-500.0,0.00013698,2]
[424210426,1780667505000,-500.0,0.00013698,2]
[424210428,1780667505000,-500.0,0.00013698,2]
[424210431,1780667505000,-500.0,0.00013698,2]
[424210427,1780667505000,-500.0,0.00013698,2]
[424210414,1780667505000,-500.0,0.00013698,2]
[424210434,1780667505000,-500.0,0.00013698,2]
[424210425,1780667505000,-500.0,0.00013698,2]
[424210430,1780667505000,-500.0,0.00013698,2]
[424210424,1780667505000,-500.0,0.00013698,2]
[424210421,1780667505000,-500.0,0.00013698,2]
[424210432,1780667505000,-500.0,0.00013698,2]
[424210441,1780667506000,-500.0,0.00013698,2]
[424210456,1780667506000,-150.99,0.00013699,2]
[424210453,1780667506000,-500.0,0.00013698,2]
[424210452,1780667506000,-500.0,0.00013698,2]
[424210444,1780667506000,-500.0,0.00013698,2]
[424210446,1780667506000,-500.0,0.00013698,2]
[424210435,1780667506000,-500.0,0.00013698,2]
[424210450,1780667506000,-500.0,0.00013698,2]
[424210442,1780667506000,-500.1699755,0.00013698,2]
[424210437,1780667506000,-500.0,0.00013698,2]
[424210454,1780667506000,-166.66,0.00013699,2]
[424210436,1780667506000,-500.0,0.00013698,2]
[424210438,1780667506000,-500.0,0.00013698,2]
[424210440,1780667506000,-500.0,0.00013698,2]
[424210449,1780667506000,-500.0,0.00013698,2]
[424210462,1780667506000,-1848.1,0.00013699,2]
[424210461,1780667506000,-10329.28,0.00013699,2]
[424210459,1780667506000,-166.57909325,0.00013699,10]
[424210458,1780667506000,-1560.86,0.00013699,2]
[424210457,1780667506000,-19816.59,0.00013699,2]
[424210451,1780667506000,-500.0,0.00013698,2]
[424210460,1780667506000,-505.03,0.00013699,2]
[424210445,1780667506000,-500.0,0.00013698,2]
[424210443,1780667506000,-500.0,0.00013698,2]
[424210448,1780667506000,-500.0,0.00013698,2]
[424210439,1780667506000,-500.0,0.00013698,2]
[424210455,1780667506000,-200.0,0.00013699,2]
[424210447,1780667506000,-550.35864884,0.00013698,2]
[424210469,1780667507000,-1064.22248438,0.00013699,2]
[424210470,1780667507000,-1064.22248438,0.00013699,2]
[424210467,1780667507000,-501.99968761,0.00013699,2]
[424210464,1780667507000,-46621.05,0.00013699,2]
[424210466,1780667507000,-4999.99,0.00013699,2]
[424210468,1780667507000,-1064.22248438,0.00013699,2]
[424210483,1780667507000,-604.18042844,0.00013699,2]
[424210472,1780667507000,-500.0,0.00013699,2]
[424210478,1780667507000,-500.0,0.00013699,2]
[424210471,1780667507000,-500.0,0.00013699,2]
[424210475,1780667507000,-500.0,0.00013699,2]
[424210463,1780667507000,-12852.43,0.00013699,2]
[424210473,1780667507000,-500.0,0.00013699,2]
[424210486,1780667507000,-604.18042844,0.00013699,2]
[424210474,1780667507000,-500.0,0.00013699,2]
[424210480,1780667507000,-164.11044163,0.00013699,2]
[424210487,1780667507000,-604.18042844,0.00013699,2]
[424210488,1780667507000,-604.18042844,0.00013699,2]
[424210465,1780667507000,-501.71,0.00013699,2]
[424210484,1780667507000,-604.18042844,0.00013699,2]
[424210489,1780667507000,-604.18042844,0.00013699,2]
[424210479,1780667507000,-500.0,0.00013699,2]
[424210481,1780667507000,-500.0,0.00013699,2]
[424210485,1780667507000,-604.18042844,0.00013699,2]
[424210477,1780667507000,-500.0,0.00013699,2]
[424210476,1780667507000,-500.0,0.00013699,2]
[424210482,1780667507000,-500.0,0.00013699,2]
[424210501,1780667508000,-604.18042844,0.00013699,2]
[424210498,1780667508000,-604.18042844,0.00013699,2]
[424210511,1780667508000,-606.97756005,0.00013699,2]
[424210502,1780667508000,-604.18042844,0.00013699,2]
[424210515,1780667508000,-606.97756005,0.00013699,2]
[424210504,1780667508000,-606.97756005,0.00013699,2]
[424210491,1780667508000,-604.18042844,0.00013699,2]
[424210517,1780667508000,-606.97756005,0.00013699,2]
[424210509,1780667508000,-606.97756005,0.00013699,2]
[424210499,1780667508000,-604.18042844,0.00013699,2]
[424210493,1780667508000,-604.18042844,0.00013699,2]
[424210490,1780667508000,-604.18042844,0.00013699,2]
[424210492,1780667508000,-604.18042844,0.00013699,2]
[424210521,1780667508000,-606.97756005,0.00013699,2]
[424210516,1780667508000,-606.97756005,0.00013699,2]
[424210514,1780667508000,-606.97756005,0.00013699,2]
[424210500,1780667508000,-604.18042844,0.00013699,2]
[424210513,1780667508000,-606.97756005,0.00013699,2]
[424210508,1780667508000,-606.97756005,0.00013699,2]
[424210495,1780667508000,-604.18042844,0.00013699,2]
[424210520,1780667508000,-606.97756005,0.00013699,2]
[424210512,1780667508000,-606.97756005,0.00013699,2]
[424210505,1780667508000,-606.97756005,0.00013699,2]
[424210497,1780667508000,-604.18042844,0.00013699,2]
[424210519,1780667508000,-606.97756005,0.00013699,2]
[424210503,1780667508000,-604.18042844,0.00013699,2]
[424210518,1780667508000,-606.97756005,0.00013699,2]
[424210510,1780667508000,-606.97756005,0.00013699,2]
[424210496,1780667508000,-604.18042844,0.00013699,2]
[424210522,1780667508000,-606.97756005,0.00013699,2]
[424210494,1780667508000,-604.18042844,0.00013699,2]
[424210506,1780667508000,-606.97756005,0.00013699,2]
[424210507,1780667508000,-606.97756005,0.00013699,2]
[424210544,1780667509000,-47798.280807,0.0001399,2]
[424210537,1780667509000,-2100.0,0.000139,5]
[424210535,1780667509000,-166.66,0.00013836,2]
[424210556,1780667509000,-2000.0,0.00014,2]
[424210546,1780667509000,-2000.0,0.00014,2]
[424210531,1780667509000,-451.59553572,0.00013817,2]
[424210528,1780667509000,-150.0,0.00013702,2]
[424210533,1780667509000,-8747.11275219,0.00013833,2]
[424210532,1780667509000,-150.0,0.00013818,2]
[424210527,1780667509000,-277.92638462,0.000137,2]
[424210526,1780667509000,-150.0,0.000137,2]
[424210525,1780667509000,-150.0,0.000137,2]
[424210523,1780667509000,-606.97756005,0.00013699,2]
[424210529,1780667509000,-150.0,0.00013737,2]
[424210550,1780667509000,-2000.0,0.00014,2]
[424210524,1780667509000,-606.97756005,0.00013699,2]
[424210538,1780667509000,-150.0,0.00013916,2]
[424210530,1780667509000,-150.0,0.00013792,2]
[424210548,1780667509000,-2000.0,0.00014,2]
[424210542,1780667509000,-2183.1497371,0.00013985,2]
[424210540,1780667509000,-202.414943,0.00013962,2]
[424210554,1780667509000,-2000.0,0.00014,2]
[424210549,1780667509000,-2000.0,0.00014,2]
[424210557,1780667509000,-2000.0,0.00014,2]
[424210541,1780667509000,-166.66,0.00013973,2]
[424210534,1780667509000,-23167.32030096,0.00013833,2]
[424210552,1780667509000,-2000.0,0.00014,2]
[424210558,1780667509000,-2000.0,0.00014,2]
[424210543,1780667509000,-150.0,0.00013987,2]
[424210539,1780667509000,-150.0,0.00013919,2]
[424210547,1780667509000,-2000.0,0.00014,2]
[424210559,1780667509000,-150.0,0.00014021,2]
[424210553,1780667509000,-2000.0,0.00014,2]
[424210536,1780667509000,-150.0,0.00013862,2]
[424210545,1780667509000,-250.0,0.00014,2]
[424210555,1780667509000,-2000.0,0.00014,2]
[424210551,1780667509000,-2000.0,0.00014,2]
[424210589,1780667510000,-150.0,0.00014612,2]
[424210586,1780667510000,-4609.0,0.000146,2]
[424210583,1780667510000,-150.0,0.00014529,2]
[424210580,1780667510000,-150.0,0.00014478,2]
[424210577,1780667510000,-23167.32030096,0.00014367,2]
[424210561,1780667510000,-178.295222,0.00014071,2]
[424210564,1780667510000,-166.66,0.0001411,2]
[424210565,1780667510000,-150.0,0.00014112,2]
[424210562,1780667510000,-150.0,0.00014072,2]
[424210560,1780667510000,-433.0,0.00014052,2]
[424210563,1780667510000,-1481.263846,0.00014079,2]
[424210576,1780667510000,-150.0,0.00014362,2]
[424210572,1780667510000,-166.66,0.00014247,2]
[424210567,1780667510000,-160.0,0.00014173,2]
[424210571,1780667510000,-150.0,0.00014237,2]
[424210570,1780667510000,-8747.11275219,0.00014189,2]
[424210566,1780667510000,-150.0,0.0001413,2]
[424210584,1780667510000,-8747.11275219,0.00014544,2]
[424210579,1780667510000,-2183.1497371,0.00014443,2]
[424210578,1780667510000,-166.66,0.00014384,2]
[424210573,1780667510000,-150.0,0.00014326,2]
[424210569,1780667510000,-1188.017152,0.00014173,2]
[424210585,1780667510000,-150.0,0.00014558,2]
[424210581,1780667510000,-150.0,0.00014487,2]
[424210574,1780667510000,-150.0,0.00014344,2]
[424210588,1780667510000,-150.0,0.00014605,2]
[424210575,1780667510000,-451.59553572,0.00014358,2]
[424210568,1780667510000,-674.008576,0.00014173,2]
[424210582,1780667510000,-1600.0,0.000145,5]
[424210587,1780667510000,-1600.0,0.000146,5]
[424210601,1780667511000,-150.0,0.00014737,2]
[424210594,1780667511000,-150.0,0.00014707,2]
[424210598,1780667511000,-382.0,0.00014732,2]
[424210593,1780667511000,-7114.13229104,0.000147,2]
[424210597,1780667511000,-382.0,0.00014731,2]
[424210591,1780667511000,-150.0,0.00014656,2]
[424210590,1780667511000,-1500.0,0.00014616,2]
[424210600,1780667511000,-382.0,0.00014734,2]
[424210596,1780667511000,-382.0,0.00014729,2]
[424210592,1780667511000,-1600.0,0.000147,5]
[424210599,1780667511000,-382.0,0.00014732,2]
[424210595,1780667511000,-500.0,0.00014714,2]
[424210609,1780667511000,-382.0,0.00014774,2]
[424210611,1780667511000,-382.0,0.00014779,2]
[424210602,1780667511000,-382.0,0.00014739,2]
[424210612,1780667511000,-383.0,0.00014783,2]
[424210614,1780667511000,-382.0,0.00014789,2]
[424210616,1780667511000,-382.0,0.00014791,2]
[424210615,1780667511000,-385.0,0.0001479,2]
[424210613,1780667511000,-382.0,0.00014784,2]
[424210604,1780667511000,-382.0,0.00014754,2]
[424210610,1780667511000,-439.0,0.00014778,2]
[424210608,1780667511000,-150.0,0.00014772,2]
[424210607,1780667511000,-382.0,0.0001476,2]
[424210606,1780667511000,-10000.0,0.00014759,2]
[424210605,1780667511000,-385.0,0.00014756,2]
[424210603,1780667511000,-382.0,0.00014748,2]
[424210631,1780667512000,-6157.49,0.000148,2]
[424210623,1780667512000,-382.0,0.00014798,2]
[424210630,1780667512000,-6157.49,0.000148,2]
[424210636,1780667512000,-155.23,0.000148,2]
[424210629,1780667512000,-186.3,0.000148,2]
[424210626,1780667512000,-186.27,0.000148,2]
[424210627,1780667512000,-186.27,0.000148,2]
[424210619,1780667512000,-500.0,0.00014794,2]
[424210618,1780667512000,-382.0,0.00014793,2]
[424210622,1780667512000,-382.0,0.00014797,2]
[424210625,1780667512000,-186.27,0.000148,2]
[424210624,1780667512000,-510.0,0.000148,2]
[424210635,1780667512000,-155.23,0.000148,2]
[424210617,1780667512000,-382.0,0.00014791,2]
[424210620,1780667512000,-565.64936812,0.00014794,2]
[424210640,1780667512000,-382.0,0.00014814,2]
[424210642,1780667512000,-382.0,0.00014819,2]
[424210643,1780667512000,-25000.0,0.00014821,3]
[424210637,1780667512000,-155.23,0.000148,2]
[424210641,1780667512000,-382.0,0.00014817,2]
[424210639,1780667512000,-25000.0,0.00014812,3]
[424210632,1780667512000,-6157.49,0.000148,2]
[424210628,1780667512000,-186.27,0.000148,2]
[424210621,1780667512000,-25000.0,0.00014794,3]
[424210634,1780667512000,-6157.53,0.000148,2]
[424210633,1780667512000,-6157.49,0.000148,2]
[424210638,1780667512000,-1600.0,0.000148,5]
[424210645,1780667513000,-382.0,0.00014832,2]
[424210656,1780667513000,-150.0,0.00014859,2]
[424210665,1780667513000,-919.102603,0.00014882,2]
[424210658,1780667513000,-382.0,0.00014864,2]
[424210661,1780667513000,-10000.0,0.00014868,2]
[424210657,1780667513000,-150.0,0.00014861,2]
[424210667,1780667513000,-150.0,0.00014885,2]
[424210652,1780667513000,-382.0,0.00014852,2]
[424210668,1780667513000,-382.0,0.00014888,2]
[424210654,1780667513000,-25000.0,0.00014856,3]
[424210669,1780667513000,-382.0,0.00014889,2]
[424210666,1780667513000,-25000.0,0.00014882,3]
[424210662,1780667513000,-382.0,0.00014869,2]
[424210660,1780667513000,-25000.0,0.00014865,3]
[424210648,1780667513000,-382.0,0.00014839,2]
[424210653,1780667513000,-382.0,0.00014853,2]
[424210651,1780667513000,-25000.0,0.00014847,3]
[424210644,1780667513000,-25000.0,0.0001483,3]
[424210646,1780667513000,-382.0,0.00014836,2]
[424210650,1780667513000,-382.0,0.00014841,2]
[424210649,1780667513000,-382.0,0.00014839,2]
[424210647,1780667513000,-25000.0,0.00014838,3]
[424210659,1780667513000,-1023.63214271,0.00014864,5]
[424210664,1780667513000,-382.0,0.00014877,2]
[424210663,1780667513000,-25000.0,0.00014874,3]
[424210655,1780667513000,-382.0,0.00014858,2]
[424210689,1780667514000,-385.0,0.00014911,2]
[424210682,1780667514000,-25000.0,0.000149,3]
[424210695,1780667514000,-382.0,0.00014933,2]
[424210675,1780667514000,-25000.0,0.000149,3]
[424210691,1780667514000,-382.0,0.00014912,2]
[424210687,1780667514000,-382.0,0.00014908,2]
[424210673,1780667514000,-382.0,0.00014897,2]
[424210678,1780667514000,-230.9930957,0.000149,2]
[424210674,1780667514000,-382.0,0.00014897,2]
[424210670,1780667514000,-266.0,0.00014889,2]
[424210672,1780667514000,-382.0,0.00014892,2]
[424210671,1780667514000,-25000.0,0.00014891,3]
[424210685,1780667514000,-3940.64165402,0.000149,2]
[424210684,1780667514000,-23167.32030096,0.000149,2]
[424210696,1780667514000,-382.0,0.00014935,2]
[424210679,1780667514000,-230.99309568,0.000149,2]
[424210693,1780667514000,-382.0,0.00014922,2]